bitfinex/quotes_SOLUSD_20220311
["timestamp","ask_amount","ask_price","bid_price","bid_amount"]
[1647010890402,24.1278,82.258,82.173,3.04447957]
[1647010890601,2.99326106,82.257,82.173,3.04447957]
[1647010890801,2.99326106,82.257,82.174,21.78318448]
[1647010891203,2.99326106,82.257,82.175,3.04447957]
[1647010892502,24.1278,82.258,82.181,120.8]
[1647010892902,24.1278,82.258,82.183,120.8]
[1647010893325,24.1278,82.258,82.184,24.82766405]
[1647010893527,24.1278,82.258,82.186,4.09805073]
[1647010893928,24.1278,82.258,82.187,21.78318448]
[1647010894126,24.1278,82.258,82.187,24.82766405]
[1647010894328,24.1278,82.258,82.188,3.04447957]
[1647010894633,24.1278,82.258,82.188,24.82766405]
[1647010894831,24.1278,82.258,82.188,3.04447957]
[1647010895030,24.1278,82.258,82.19,120.8]
[1647010895232,24.1278,82.258,82.19,139.035]
[1647010895431,24.1278,82.258,82.191,24.82766405]
[1647010895832,24.1278,82.258,82.192,3.04447957]
[1647010896239,24.275,82.3,82.201,120.8]
[1647010896432,24.275,82.3,82.203,120.8]
[1647010896635,24.275,82.3,82.204,5.55276985]
[1647010896932,24.275,82.3,82.205,120.8]
[1647010897136,2.96920136,82.299,82.205,168.19627895]
[1647010897334,24.275,82.3,82.205,194.23727633]
[1647010897533,1.63859913,82.318,82.207,120.8]
[1647010897735,23.0977,82.323,82.208,0.25]
[1647010897932,23.0977,82.323,82.222,5.16674259]
[1647010898132,23.0977,82.323,82.224,120.8]
[1647010898332,3.15176593,82.322,82.226,120.8]
[1647010898533,3.15176593,82.322,82.23,14.42]
[1647010899334,3.15176593,82.322,82.231,3.04447957]
[1647010899534,3.15176593,82.322,82.231,8.62850879]
[1647010899932,3.15176593,82.322,82.233,120.8]
[1647010900334,23.0977,82.323,82.235,120.8]
[1647010900533,23.0977,82.323,82.237,120.8]
[1647010901036,115.33859913,82.354,82.251,120.8]
[1647010901237,24.7242,82.345,82.252,65.29697465]
[1647010901441,24.7242,82.345,82.252,138.50407203]
[1647010901639,24.7242,82.345,82.252,112.46307465]
[1647010901842,18.2323,82.3,82.253,3.04447957]
[1647010902041,18.2323,82.3,82.238,39.01019489]
[1647010902042,193.28,82.344,82.21,60.7783]
[1647010902245,236.63124979,82.344,82.211,47.1661]
[1647010902542,72.48,82.325,82.211,47.1661]
[1647010902841,120.8,82.321,82.213,59.42230117]
[1647010903040,18.2264,82.32,82.213,59.42230117]
[1647010903241,41.7174,82.32,82.214,26.04099738]
[1647010903441,41.7174,82.32,82.215,120.8]
[1647010903641,41.7174,82.32,82.22,14.42]
[1647010903843,23.491,82.32,82.221,144.6323]
[1647010904044,23.491,82.32,82.221,169.19613451]
[1647010904243,23.491,82.32,82.241,124.83715443]
[1647010904446,23.491,82.32,82.243,120.8]
[1647010904848,23.491,82.32,82.242,67.08372887]
[1647010905045,41.7174,82.32,82.244,3.04447957]
[1647010905246,23.491,82.32,82.244,3.04447957]
[1647010906147,18.2289,82.31,82.244,3.04447957]
[1647010908954,18.2307,82.3,82.243,23.8323]
[1647010909351,84.2619,82.32,82.243,23.8323]
[1647010909956,18.2298,82.31,82.243,23.8323]
[1647010910554,18.2298,82.31,82.243,26.87677957]
[1647010910756,72.48,82.318,82.23,18.2238]
[1647010910957,120.8,82.299,82.227,3.04447957]
[1647010911158,193.28,82.291,82.197,3.04447957]
[1647010911355,120.8,82.289,82.197,3.04447957]
[1647010911659,24.051,82.29,82.198,51.49248921]
[1647010911660,120.8,82.279,82.198,51.49248921]
[1647010912078,18.2401,82.26,82.199,3.04447957]
[1647010912880,120.8,82.279,82.199,3.04447957]
[1647010913080,18.2418,82.25,82.191,23.4808]
[1647010913682,120.8,82.269,82.183,3.04447957]
[1647010913881,193.28,82.261,82.167,64.24064208]
[1647010914180,120.8,82.259,82.167,64.24064208]
[1647010914380,18.2467,82.23,82.167,64.24064208]
[1647010915182,120.8,82.229,82.166,3.04447957]
[1647010915383,18.2498,82.22,82.166,3.04447957]
[1647010916583,193.28,82.231,82.16,18.2489]
[1647010916584,18.2517,82.21,82.16,18.2489]
[1647010917584,120.8,82.229,82.16,18.2489]
[1647010918184,120.8,82.219,82.16,18.2489]
[1647010920090,18.2516,82.21,82.153,3.04447957]
[1647010920486,120.8,82.229,82.153,3.04447957]
[1647010921090,18.2497,82.22,82.153,3.04447957]
[1647010921291,18.2497,82.22,82.16,18.2503]
[1647010921489,23.0937,82.23,82.16,18.2503]
[1647010921688,23.0937,82.23,82.161,3.04447957]
[1647010921988,23.0937,82.23,82.161,50.60483189]
[1647010922192,23.0937,82.23,82.162,47.56035232]
[1647010922393,23.0937,82.23,82.162,50.60483189]
[1647010922693,23.0937,82.23,82.163,50.60483189]
[1647010923090,23.0937,82.23,82.164,50.60483189]
[1647010923490,23.0937,82.23,82.165,50.60483189]
[1647010923691,23.0937,82.23,82.165,26.04099738]
[1647010923891,23.0937,82.23,82.166,3.04447957]
[1647010925196,18.2406,82.26,82.167,47.56035232]
[1647010925395,23.3905,82.258,82.17,14.42]
[1647010925795,23.3905,82.258,82.171,3.04447957]
[1647010926697,23.3905,82.258,82.172,22.99651781]
[1647010927102,23.3905,82.258,82.174,58.30677703]
[1647010927498,23.3905,82.258,82.175,3.04447957]
[1647010928104,77.9906,82.307,82.181,120.8]
[1647010928304,23.1474,82.306,82.183,120.8]
[1647010928500,23.1474,82.306,82.22,18.2255]
[1647010928700,23.1474,82.306,82.221,57.19819629]
[1647010929106,23.1474,82.306,82.221,60.24267586]
[1647010929303,23.1474,82.306,82.222,3.04447957]
[1647010929904,23.1474,82.306,82.223,25.63118448]
[1647010930305,23.1474,82.306,82.224,3.04447957]
[1647010930802,23.1474,82.306,82.226,4.3561211]
[1647010931303,23.1474,82.306,82.227,3.04447957]
[1647010931909,23.1474,82.306,82.228,27.36451781]
[1647010932305,23.1474,82.306,82.229,3.04447957]
[1647010932704,23.1474,82.306,82.23,27.36451781]
[1647010932907,23.1474,82.306,82.23,45.59251781]
[1647010933105,23.1474,82.306,82.231,3.04447957]
[1647010933305,23.1474,82.306,82.231,30.40899738]
[1647010933506,23.1474,82.306,82.232,27.36451781]
[1647010933706,23.1474,82.306,82.232,30.40899738]
[1647010933908,23.1474,82.306,82.233,3.04447957]
[1647010934106,23.1474,82.306,82.233,30.40899738]
[1647010934309,24.6165,82.329,82.234,27.36451781]
[1647010934507,23.4654,82.328,82.235,125.53103237]
[1647010934705,23.4654,82.328,82.235,128.57551194]
[1647010934907,23.4654,82.328,82.237,120.8]
[1647010935107,23.4654,82.328,82.236,3.04447957]
[1647010935308,23.4654,82.328,82.235,4.73103237]
[1647010935309,23.4654,82.328,82.238,3.04447957]
[1647010935709,120.8,82.327,82.238,3.04447957]
[1647010936308,23.4654,82.328,82.239,27.36451781]
[1647010936509,23.4654,82.328,82.239,148.16451781]
[1647010936810,23.4654,82.328,82.24,41.78451781]
[1647010937008,23.4654,82.328,82.24,44.82899738]
[1647010937207,23.4654,82.328,82.241,27.36451781]
[1647010937408,23.4654,82.328,82.241,30.40899738]
[1647010937608,23.4654,82.328,82.242,3.04447957]
[1647010938344,18.2279,82.32,82.242,3.04447957]
[1647010938509,23.4654,82.328,82.242,3.04447957]
[1647010938710,23.4654,82.328,82.242,30.40899738]
[1647010939110,23.4654,82.328,82.243,3.04447957]
[1647010939312,18.228,82.32,82.243,3.04447957]
[1647010939510,139.028,82.32,82.243,3.04447957]
[1647010939711,23.4654,82.328,82.243,3.04447957]
[1647010940309,18.2288,82.31,82.243,3.04447957]
[1647010941111,23.4654,82.328,82.243,3.04447957]
[1647010941310,23.4654,82.328,82.25,18.2187]
[1647010941511,23.4654,82.328,82.251,61.71775471]
[1647010941710,23.4654,82.328,82.251,92.12675209]
[1647010941913,23.4654,82.328,82.252,30.40899738]
[1647010942311,23.4654,82.328,82.253,30.40899738]
[1647010942714,23.4654,82.328,82.254,30.40899738]
[1647010943114,23.4654,82.328,82.255,3.04447957]
[1647010943512,23.4654,82.328,82.257,120.8]
[1647010943712,23.4654,82.328,82.257,124.83180439]
[1647010943911,23.4654,82.328,82.258,3.04447957]
[1647010947852,23.4654,82.328,82.259,27.36451781]
[1647010948255,23.4654,82.328,82.26,3.04447957]
[1647010948653,23.4654,82.328,82.26,30.40899738]
[1647010949052,23.4654,82.328,82.261,3.04447957]
[1647010952257,18.2266,82.32,82.261,3.04447957]
[1647010953058,23.4654,82.328,82.261,3.04447957]
[1647010953565,23.4654,82.328,82.261,30.40899738]
[1647010953967,23.4654,82.328,82.262,3.04447957]
[1647010954761,18.2259,82.32,82.262,3.04447957]
[1647010955562,23.4654,82.328,82.251,64.76223428]
[1647010955763,18.2311,82.3,82.251,3.04447957]
[1647010955961,18.2311,82.3,82.246,23.5794]
[1647010957366,120.8,82.31,82.24,3.04447957]
[1647010957565,120.8,82.31,82.23,18.2273]
[1647010957769,120.8,82.308,82.23,18.2273]
[1647010958368,120.8,82.308,82.231,51.48396708]
[1647010958871,18.2327,82.29,82.231,51.48396708]
[1647010959170,18.2327,82.29,82.232,27.36451781]
[1647010959867,22.5288,82.299,82.232,27.36451781]
[1647010960068,22.5288,82.299,82.232,30.40899738]
[1647010960268,22.5288,82.299,82.233,24.56383451]
[1647010960466,22.5288,82.299,82.233,51.92835232]
[1647010960670,22.5288,82.299,82.234,3.04447957]
[1647010960867,1.63859913,82.321,82.234,30.40899738]
[1647010961070,22.8987,82.327,82.24,14.42]
[1647010961471,22.8987,82.327,82.241,54.97283189]
[1647010961871,18.2255,82.32,82.242,30.40899738]
[1647010962070,22.8987,82.327,82.242,30.40899738]
[1647010962269,22.8987,82.327,82.243,30.40899738]
[1647010962671,22.8987,82.327,82.244,151.20899738]
[1647010962869,22.8987,82.327,82.245,4.3325059]
[1647010963069,22.8987,82.327,82.247,120.8]
[1647010963273,22.8987,82.327,82.246,25.81607957]
[1647010963769,22.8987,82.327,82.248,3.04447957]
[1647010963973,18.2257,82.32,82.248,3.04447957]
[1647010964598,18.2257,82.32,82.249,27.36451781]
[1647010964971,22.8987,82.327,82.249,27.36451781]
[1647010964972,18.2276,82.31,82.25,3.04447957]
[1647010966576,18.2302,82.3,82.246,22.7716]
[1647010967375,60.7673,82.32,82.246,22.7716]
[1647010967777,18.2291,82.31,82.246,22.7716]
[1647010967976,60.7673,82.32,82.246,22.7716]
[1647010968178,181.5673,82.32,82.246,22.7716]
[1647010968575,60.7673,82.32,82.246,22.7716]
[1647010968776,181.5673,82.32,82.246,22.7716]
[1647010969180,181.5673,82.32,82.236,30.40899738]
[1647010969476,183.20589913,82.32,82.236,30.40899738]
[1647010970077,18.2322,82.29,82.236,30.40899738]
[1647010970678,18.2322,82.29,82.24,45.58941781]
[1647010971279,18.2305,82.3,82.24,45.58941781]
[1647010971482,120.8,82.3,82.24,18.2249]
[1647010971681,23.5824,82.309,82.24,18.2249]
[1647010972306,144.3824,82.309,82.24,18.2249]
[1647010972504,23.5824,82.309,82.24,18.2249]
[1647010972705,23.5824,82.309,82.241,27.36451781]
[1647010973106,18.2334,82.29,82.241,27.36451781]
[1647010974209,18.2334,82.29,82.24,18.2249]
[1647010975510,18.2307,82.3,82.24,18.2249]
[1647010975911,23.5824,82.309,82.24,45.58941781]
[1647010976715,23.5824,82.309,82.241,3.04447957]
[1647010978913,18.2301,82.3,82.241,3.04447957]
[1647010979315,23.5824,82.309,82.241,3.04447957]
[1647010979715,23.5824,82.309,82.242,27.36451781]
[1647010980116,23.5824,82.309,82.243,3.04447957]
[1647010980516,23.5824,82.309,82.244,27.36451781]
[1647010980725,1.63859913,82.338,82.245,120.8]
[1647010980919,1.63859913,82.338,82.251,120.8]
[1647010981123,1.63859913,82.35,82.251,120.8]
[1647010981316,1.63859913,82.35,82.25,14.42]
[1647010981317,1.63859913,82.35,82.253,120.8]
[1647010981520,23.0385,82.352,82.253,120.8]
[1647010981521,24.67709913,82.352,82.253,126.69]
[1647010981720,23.0385,82.352,82.255,5.10639901]
[1647010981924,1.63859913,82.351,82.256,56.3242811]
[1647010982119,1.63859913,82.35,82.256,59.36876067]
[1647010982321,1.63859913,82.349,82.256,59.36876067]
[1647010982520,1.63859913,82.346,82.257,3.04447957]
[1647010982720,120.8,82.326,82.257,3.04447957]
[1647010982920,120.8,82.326,82.256,56.3242811]
[1647010983121,18.2324,82.29,82.246,22.0819]
[1647010983322,18.2324,82.29,82.245,3.04447957]
[1647010983521,60.7746,82.31,82.24,18.2324]
[1647010983522,5.88,82.304,82.24,18.2324]
[1647010983722,5.88,82.304,82.215,27.36451781]
[1647010983723,5.88,82.304,82.224,17.03675689]
[1647010983921,5.88,82.304,82.216,24.6457]
[1647010983922,5.88,82.304,82.219,3.04447957]
[1647010984122,18.2355,82.28,82.222,57.84258697]
[1647010984326,18.2355,82.28,82.222,60.88706654]
[1647010984526,46.6406,82.298,82.222,60.88706654]
[1647010984728,1.63859913,82.321,82.223,123.84447957]
[1647010984924,23.9009,82.322,82.231,4.06580916]
[1647010985326,23.9009,82.322,82.232,24.62671781]
[1647010985526,23.9009,82.322,82.233,24.7461]
[1647010985727,23.9009,82.322,82.233,27.79057957]
[1647010985926,23.9009,82.322,82.233,24.7461]
[1647010986128,23.9009,82.322,82.235,57.81683702]
[1647010986328,18.2294,82.31,82.24,18.2199]
[1647010986527,120.8,82.309,82.24,18.2199]
[1647010986929,120.8,82.309,82.212,14.71669022]
[1647010987132,120.8,82.307,82.208,24.7461]
[1647010987329,193.28,82.301,82.207,12.68367307]
[1647010987634,18.2381,82.27,82.208,3.04447957]
[1647010988031,120.8,82.269,82.208,3.04447957]
[1647010988229,120.8,82.269,82.198,3.04447957]
[1647010988532,120.8,82.259,82.19,18.2425]
[1647010988735,1.63859913,82.286,82.19,18.2425]
[1647010988930,1.63859913,82.282,82.191,73.85230676]
[1647010989129,24.745,82.3,82.191,73.85230676]
[1647010989130,24.745,82.3,82.191,93.08680989]
[1647010989331,24.745,82.3,82.192,51.56119738]
[1647010989532,25.36225223,82.299,82.192,51.56119738]
[1647010989734,25.36225223,82.299,82.193,27.67119738]
[1647010989933,120.8,82.298,82.193,27.67119738]
[1647010990132,120.8,82.298,82.194,3.04447957]
[1647010990332,120.8,82.296,82.194,3.04447957]
[1647010990534,18.2389,82.26,82.194,3.04447957]
[1647010990958,120.8,82.277,82.194,3.04447957]
[1647010991355,120.8,82.277,82.192,23.89]
[1647010991558,120.8,82.249,82.19,18.2423]
[1647010991957,120.8,82.247,82.165,24.62671781]
[1647010992155,72.48,82.248,82.165,24.62671781]
[1647010992156,193.28,82.241,82.165,24.62671781]
[1647010992357,193.28,82.241,82.146,6.34222686]
[1647010992567,193.28,82.241,82.13,0.60855567]
[1647010992755,193.28,82.239,82.13,0.60855567]
[1647010993155,120.8,82.237,82.13,0.60855567]
[1647010993356,193.28,82.237,82.13,18.86515567]
[1647010993557,25.91571734,82.239,82.13,0.60855567]
[1647010993558,120.8,82.189,82.13,0.60855567]
[1647010994656,120.8,82.179,82.13,0.60855567]
[1647010995357,120.8,82.173,82.06,14.42]
[1647010995557,120.8,82.159,82.04,12.69623411]
[1647010995758,193.28,82.153,82.055,24.62671781]
[1647010995958,193.28,82.153,82.055,17.62671781]
[1647010996358,24.1043,82.172,82.04,24.02005115]
[1647010996359,193.28,82.149,82.04,24.02005115]
[1647010996558,193.28,82.149,82.021,24.42914118]
[1647010996758,193.28,82.149,82.021,48.44919233]
[1647010996759,120.8,82.139,82.021,48.44919233]
[1647010996966,120.8,82.129,82.021,24.42914118]
[1647010997262,193.28,82.123,82.021,0.65634118]
[1647010997662,120.8,82.109,82.021,0.65634118]
[1647010998259,18.4371678,82.129,82.021,0.65634118]
[1647010998461,14.42,82.13,82.021,0.65634118]
[1647010998661,14.42,82.13,82.04,18.2726]
[1647010998861,14.42,82.13,82.022,27.75786405]
[1647010999366,123.84447957,82.129,82.024,52.59284644]
[1647010999564,193.28,82.123,82.024,52.59284644]
[1647010999971,120.8,82.119,82.024,52.59284644]
[1647011000366,14.42,82.12,82.024,52.59284644]
[1647011000567,3.04447957,82.134,82.025,3.04447957]
[1647011000769,14.42,82.14,82.05,56.83971786]
[1647011000970,18.43673446,82.151,82.026,24.71338448]
[1647011001168,14.42,82.14,82.026,24.71338448]
[1647011001370,3.04447957,82.131,82.021,0.65634118]
[1647011001770,120.8,82.129,82.021,0.65634118]
[1647011001972,193.28,82.119,82.021,0.65634118]
[1647011002173,193.28,82.119,82.022,3.04447957]
[1647011002372,193.28,82.119,82.023,63.6981626]
[1647011002584,3.04447957,82.118,82.023,63.6981626]
[1647011002773,3.04447957,82.118,82.024,3.04447957]
[1647011003070,120.8,82.119,82.024,3.04447957]
[1647011003270,120.8,82.119,82.025,27.12281736]
[1647011003472,120.8,82.119,82.021,0.65634118]
[1647011003473,3.04447957,82.118,82.021,0.65634118]
[1647011003671,34.51390876,82.118,82.021,0.65634118]
[1647011003872,120.3161,82.117,82.021,0.65634118]
[1647011004070,47.8361,82.117,82.021,0.65634118]
[1647011004471,120.8,82.116,82.021,0.65634118]
[1647011004673,120.8,82.112,82.021,0.65634118]
[1647011004875,47.8361,82.117,82.022,3.04447957]
[1647011005075,47.8361,82.117,82.023,55.12883245]
[1647011005474,60.9009,82.18,82.023,55.12883245]
[1647011005475,7.0,82.173,82.024,3.04447957]
[1647011005675,14.42,82.15,82.024,8.76674727]
[1647011005877,3.04447957,82.167,82.025,19.71722888]
[1647011006075,14.42,82.16,82.025,22.51170845]
[1647011006280,14.42,82.16,82.026,22.51170845]
[1647011006677,74.1148,82.169,82.026,22.51170845]
[1647011006678,74.1148,82.169,82.03,14.42]
[1647011007078,74.1148,82.169,82.031,143.31170845]
[1647011007276,74.1148,82.169,82.032,0.25]
[1647011007477,74.1148,82.169,82.033,124.79961215]
[1647011007678,74.1148,82.169,82.091,50.48461837]
[1647011008077,47.6067,82.17,82.091,50.48461837]
[1647011008278,47.6067,82.17,82.092,3.04447957]
[1647011009181,47.6067,82.17,82.091,50.48461837]
[1647011010282,0.25,82.169,82.091,50.48461837]
[1647011011478,121.05,82.169,82.091,50.48461837]
[1647011011779,14.42,82.16,82.061,24.1155]
[1647011011983,120.8,82.167,82.061,24.1155]
[1647011012181,3.04447957,82.159,82.057,3.04447957]
[1647011012378,193.28,82.158,82.057,0.22823207]
[1647011012581,193.28,82.149,82.008,61.21607258]
[1647011012780,193.28,82.149,81.984,5.30019213]
[1647011012985,193.28,82.147,81.989,12.68393491]
[1647011013182,193.28,82.147,81.983,71.648]
[1647011013380,32.694,82.15,81.983,71.648]
[1647011013381,193.28,82.145,81.983,71.648]
[1647011013583,193.28,82.143,81.983,71.648]
[1647011013783,193.28,82.123,82.001,46.27705263]
[1647011013982,32.701,82.13,82.001,46.27705263]
[1647011013983,14.42,82.11,82.001,46.27705263]
[1647011014285,22.9203,82.121,82.022,19.46722888]
[1647011014484,22.9203,82.121,82.023,64.93231893]
[1647011015086,120.8,82.12,82.024,3.04447957]
[1647011015288,193.28,82.12,82.024,3.04447957]
[1647011015489,193.28,82.12,82.023,64.93231893]
[1647011015490,207.7,82.12,82.023,64.93231893]
[1647011015688,3.04447957,82.119,82.023,64.93231893]
[1647011015890,0.25,82.118,82.023,64.93231893]
[1647011016291,207.7,82.12,82.023,64.93231893]
[1647011016587,135.22,82.12,82.023,64.93231893]
[1647011016787,120.8,82.119,82.023,64.93231893]
[1647011016989,120.8,82.119,82.013,20.63860678]
[1647011016990,22.9203,82.121,82.05,66.98754303]
[1647011017408,22.9203,82.121,82.05,48.71774303]
[1647011017608,0.25,82.12,82.05,48.71774303]
[1647011017809,121.05,82.12,82.024,22.51170845]
[1647011018110,121.05,82.12,82.03,18.2741]
[1647011018308,121.05,82.12,82.022,3.04447957]
[1647011018509,121.05,82.12,82.012,3.04447957]
[1647011018910,121.05,82.12,82.013,64.5303217]
[1647011019409,121.05,82.12,82.022,3.04447957]
[1647011020210,121.05,82.12,82.041,49.67894634]
[1647011020608,0.25,82.12,82.041,49.67894634]
[1647011020811,14.42,82.15,82.041,52.72342591]
[1647011021609,120.8,82.145,82.041,52.72342591]
[1647011021809,120.8,82.139,82.041,52.72342591]
[1647011024212,0.25,82.138,82.061,49.46389351]
[1647011025412,120.8,82.145,82.061,49.46389351]
[1647011026112,120.8,82.139,82.061,49.46389351]
[1647011026917,120.8,82.131,82.032,3.04447957]
[1647011027112,120.8,82.119,82.032,3.04447957]
[1647011027314,120.8,82.119,82.022,3.04447957]
[1647011027918,0.25,82.118,82.023,65.14582624]
[1647011028316,0.25,82.119,82.041,58.51018274]
[1647011028518,48.6897,82.129,82.041,58.51018274]
[1647011028816,0.25,82.128,82.042,3.04447957]
[1647011029116,48.6897,82.129,82.042,3.04447957]
[1647011029316,48.6897,82.129,82.06,18.2694]
[1647011029515,48.6897,82.129,82.061,47.33893161]
[1647011030116,1.63859913,82.157,82.062,3.04447957]
[1647011030317,1.63859913,82.165,82.062,3.04447957]
[1647011030518,1.63859913,82.165,82.12,18.2567]
[1647011030716,47.4559,82.168,82.12,18.2567]
[1647011030717,1.63859913,82.168,82.12,18.2567]
[1647011030921,1.63859913,82.173,82.063,46.76366222]
[1647011031219,1.63859913,82.173,82.07,60.874]
[1647011031616,1.63859913,82.173,82.071,3.04447957]
[1647011031816,120.8,82.169,82.071,3.04447957]
[1647011032017,1.63859913,82.167,82.072,63.34744585]
[1647011032226,0.25,82.166,82.072,63.34744585]
[1647011032428,120.8,82.159,82.072,63.34744585]
[1647011032627,120.8,82.159,82.073,3.04447957]
[1647011032826,0.25,82.166,82.1,18.2613]
[1647011033129,0.25,82.166,82.08,60.8673]
[1647011033629,0.25,82.166,82.081,3.04447957]
[1647011034025,120.8,82.178,82.081,3.04447957]
[1647011034229,120.8,82.178,82.1,18.2617]
[1647011034426,120.8,82.178,82.101,64.26902848]
[1647011035126,120.8,82.169,82.101,64.26902848]
[1647011035729,18.2628,82.17,82.101,64.26902848]
[1647011035930,0.25,82.169,82.101,64.26902848]
[1647011036128,1.63859913,82.188,82.102,3.04447957]
[1647011036529,46.5433,82.199,82.102,3.04447957]
[1647011037130,46.5433,82.199,82.103,4.13618402]
[1647011037331,46.5433,82.199,82.12,18.2569]
[1647011037530,0.25,82.198,82.12,18.2569]
[1647011037730,0.25,82.198,82.121,59.42091072]
[1647011038232,120.8,82.189,82.104,51.39677957]
[1647011038640,120.8,82.169,82.104,48.3523]
[1647011038844,18.262,82.17,82.1,18.2616]
[1647011039044,18.262,82.17,82.087,65.25400118]
[1647011039643,120.8,82.169,82.088,3.04447957]
[1647011039848,18.262,82.17,82.101,46.83741236]
[1647011040144,120.8,82.169,82.101,46.83741236]
[1647011041147,120.8,82.159,82.088,3.04447957]
[1647011041349,0.25,82.158,82.088,3.04447957]
[1647011041545,0.25,82.158,82.081,22.6886]
[1647011042152,18.2674,82.15,82.082,57.99421188]
[1647011042350,0.25,82.158,82.082,57.99421188]
[1647011043368,120.8,82.149,82.09,18.2645]
[1647011043571,120.8,82.149,82.082,57.99421188]
[1647011043768,18.2663,82.15,82.082,57.99421188]
[1647011044368,18.2638,82.16,82.09,18.2646]
[1647011044770,18.2638,82.16,82.082,57.99421188]
[1647011044971,120.8,82.159,82.082,57.99421188]
[1647011045170,72.48,82.165,82.082,57.99421188]
[1647011045370,72.48,82.151,82.07,3.04447957]
[1647011045572,139.0672,82.15,82.07,18.2693]
[1647011045770,153.4872,82.15,82.07,18.2693]
[1647011045972,153.4872,82.15,82.053,3.04447957]
[1647011046171,120.8,82.148,82.053,3.04447957]
[1647011046372,193.28,82.14,82.054,49.57369682]
[1647011046574,207.7,82.14,82.054,49.57369682]
[1647011046772,225.9744,82.14,82.034,23.6619]
[1647011046972,193.28,82.138,82.023,3.04447957]
[1647011047174,0.25,82.137,82.023,3.04447957]
[1647011047374,3.29447957,82.137,82.023,3.04447957]
[1647011047573,193.28,82.136,82.023,3.04447957]
[1647011047773,216.5696,82.136,82.024,61.99414713]
[1647011047972,193.28,82.129,82.024,61.99414713]
[1647011048172,193.28,82.119,82.024,61.99414713]
[1647011048672,3.04447957,82.118,82.024,61.99414713]
[1647011048875,3.04447957,82.118,82.015,22.9493]
[1647011049177,193.28,82.116,82.015,22.9493]
[1647011049573,3.04447957,82.115,82.015,22.9493]
[1647011049773,193.28,82.109,82.015,22.9493]
[1647011049974,193.28,82.109,82.03,18.2784]
[1647011050172,193.28,82.109,82.031,52.44144049]
[1647011050373,193.28,82.109,82.03,18.2784]
[1647011050572,193.28,82.109,82.015,22.9493]
[1647011050779,193.28,82.107,81.991,3.04447957]
[1647011051176,3.04447957,82.106,81.991,3.04447957]
[1647011051378,193.28,82.105,82.001,63.26589306]
[1647011051789,3.04447957,82.104,82.001,63.26589306]
[1647011051983,120.8,82.099,81.991,3.04447957]
[1647011052182,72.48,82.076,81.991,3.04447957]
[1647011052379,120.8,82.069,81.991,3.04447957]
[1647011052580,72.48,82.068,81.991,3.04447957]
[1647011052784,120.8,82.055,81.926,7.0]
[1647011052985,120.8,82.049,81.971,3.04447957]
[1647011053383,120.8,82.039,81.97,18.2917]
[1647011053592,120.8,82.039,81.968,48.97129064]
[1647011053984,139.0909,82.05,81.969,26.06504179]
[1647011054385,139.0909,82.05,81.969,3.04447957]
[1647011054583,120.8,82.042,81.969,3.04447957]
[1647011054783,120.8,82.04,81.956,48.1193]
[1647011055284,120.8,82.04,81.957,47.66635029]
[1647011055487,135.22,82.04,82.0,0.009515]
[1647011055688,193.28,82.029,82.0,0.009515]
[1647011055890,193.28,82.029,81.902,47.67258495]
[1647011056089,193.28,82.027,81.902,47.67258495]
[1647011056288,193.28,82.027,81.905,23.02056222]
[1647011056489,193.28,82.025,81.906,58.63887285]
[1647011056894,193.28,82.023,81.906,58.63887285]
[1647011057088,193.28,82.009,81.906,57.13887285]
[1647011057295,0.25,82.008,81.903,23.02056222]
[1647011057493,0.25,82.008,81.891,24.9413]
[1647011057696,193.28,81.999,81.891,24.9413]
[1647011057894,120.8,81.989,81.891,24.9413]
[1647011058294,120.8,81.983,81.879,63.73257764]
[1647011058492,120.3,81.983,81.879,63.73257764]
[1647011058696,23.4568,81.989,81.88,3.04447957]
[1647011058893,24.5256,81.997,81.88,3.04447957]